bitfinex/quotes_SOLUSD_20240906
["timestamp","ask_amount","ask_price","bid_price","bid_amount"]
[1725636989875,91.3277,128.27,128.15,21.06742244]
[1725636990031,7.7991,128.22,128.17,7.802]
[1725636990240,7.7986,128.23,128.18,9.36138197]
[1725636990660,7.7986,128.23,128.18,7.8015]
[1725636991960,34.9046,128.27,128.22,7.7989]
[1725636991961,7.7964,128.27,128.22,7.7989]
[1725636992135,19.4868,128.3,128.23,1.55943291]
[1725636992337,16.1752,128.32,128.24,1.55925708]
[1725636992638,7.7931,128.32,128.26,7.7961]
[1725636992839,7.7936,128.31,128.27,1.55878564]
[1725636993242,16.4789,128.37,128.27,21.04808564]
[1725636993438,16.4789,128.37,128.27,19.4893]
[1725636993439,50.0,128.36,128.27,19.4893]
[1725636993666,35.9546,128.37,128.28,1.55879966]
[1725636993964,7.7961,128.27,128.23,6.6176]
[1725636994164,50.0,128.3,128.2,19.5002]
[1725636994463,50.0,128.3,128.19,6.6176]
[1725636994464,50.0,128.28,128.19,6.6176]
[1725636994675,39.4908,128.27,128.19,6.6176]
[1725636994969,7.7978,128.25,128.19,14.418]
[1725636995159,7.798,128.24,128.19,6.6176]
[1725636995359,39.4908,128.27,128.19,6.6176]
[1725636995563,7.799,128.23,128.19,6.6176]
[1725636995740,7.7993,128.22,128.19,6.6176]
[1725636996084,39.4908,128.27,128.19,6.6176]
[1725636996240,20.0,128.27,128.2,1.55993895]
[1725636996440,7.7977,128.25,128.19,35.47926375]
[1725636996653,69.4861,128.3,128.19,35.47926375]
[1725636996885,7.7989,128.23,128.2,1.55953508]
[1725636997177,7.7989,128.23,128.19,6.6176]
[1725636997385,7.7993,128.22,128.19,6.6176]
[1725636997762,7.7999,128.21,128.19,6.6176]
[1725636998091,7.8003,128.2,128.16,19.5058]
[1725636998255,7.7999,128.21,128.16,27.3083]
[1725636998455,15.9596,128.28,128.18,19.5032]
[1725636998673,58.4649,128.29,128.21,7.7992]
[1725636998674,7.797,128.26,128.21,7.7992]
[1725636998960,7.797,128.26,128.21,9.35855342]
[1725636999164,7.797,128.26,128.21,7.7992]
[1725636999473,19.4881,128.29,128.21,1.55938233]
[1725636999675,7.7977,128.25,128.2,27.2997]
[1725636999878,7.7977,128.25,128.21,1.55943627]
[1725637000463,74.4575,128.32,128.22,6.3103]
[1725637000662,74.4575,128.32,128.23,1.55919602]
[1725637001580,50.0,128.31,128.22,6.3103]
[1725637001781,7.798,128.24,128.22,6.3103]
[1725637001962,19.489,128.28,128.22,6.3103]
[1725637002163,19.4852,128.31,128.22,6.3103]
[1725637002360,7.7964,128.27,128.23,1.55927343]
[1725637002581,45.0,128.3,128.22,14.109]
[1725637002790,20.0,128.29,128.23,1.55924886]
[1725637002967,7.7962,128.27,128.22,14.109]
[1725637003984,7.7967,128.26,128.23,1.55938284]
[1725637004202,7.7967,128.26,128.22,6.3103]
[1725637004387,7.7974,128.25,128.22,6.3103]
[1725637004766,19.4874,128.29,128.22,6.3103]
[1725637005073,20.0,128.28,128.22,6.3103]
[1725637005270,7.7962,128.27,128.22,14.1091]
[1725637005472,7.7966,128.26,128.22,6.3103]
[1725637005675,7.7988,128.23,128.18,26.1094]
[1725637005875,19.4908,128.27,128.18,26.1094]
[1725637005876,19.4934,128.25,128.18,6.6066]
[1725637006093,7.8009,128.19,128.18,6.6066]
[1725637006288,7.8009,128.19,128.15,19.5071]
[1725637006483,20.0,128.24,128.17,19.5048]
[1725637006710,50.0,128.28,128.18,7.8014]
[1725637006711,7.7986,128.23,128.18,7.8014]
[1725637007193,7.7995,128.22,128.17,19.5048]
[1725637007573,7.7995,128.22,128.17,27.3065]
[1725637007969,7.7994,128.22,128.17,27.3065]
[1725637008770,7.7985,128.23,128.18,7.8014]
[1725637009088,19.4883,128.29,128.18,1.55977025]
[1725637009302,7.7983,128.24,128.19,7.8008]
[1725637009668,7.7986,128.23,128.19,7.8008]
[1725637010069,7.7994,128.22,128.17,52.8019]
[1725637010307,19.4927,128.26,128.18,45.0]
[1725637010496,7.798,128.24,128.19,7.8005]
[1725637010693,7.7973,128.25,128.19,19.502]
[1725637010899,19.4881,128.29,128.19,19.502]
[1725637010900,7.7969,128.26,128.21,7.7996]
[1725637011901,7.7969,128.26,128.22,7.799]
[1725637012077,7.7969,128.26,128.21,27.2985]
[1725637012600,74.4577,128.32,128.22,1.55947549]
[1725637012775,7.7949,128.29,128.25,7.7971]
[1725637013095,50.0,128.31,128.22,6.6484]
[1725637013305,7.7965,128.27,128.22,14.4471]
[1725637013476,7.795,128.29,128.24,7.7977]
[1725637013971,19.4878,128.29,128.22,6.6484]
[1725637014169,19.4878,128.29,128.18,6.1852]
[1725637014170,20.0,128.28,128.18,6.1852]
[1725637014369,7.7992,128.22,128.18,6.1852]
[1725637014600,39.4894,128.28,128.2,7.8001]
[1725637014898,7.7964,128.27,128.22,7.7985]
[1725637015197,19.484,128.31,128.23,7.7984]
[1725637015198,7.7958,128.28,128.23,7.7984]
[1725637016295,7.796,128.27,128.23,7.7984]
[1725637016991,19.484,128.31,128.23,7.7984]
[1725637017319,7.796,128.27,128.22,27.2962]
[1725637017477,7.796,128.27,128.23,7.7983]
[1725637017993,7.7956,128.28,128.22,63.40875337]
[1725637018300,7.7956,128.28,128.23,7.7982]
[1725637018487,7.796,128.27,128.23,7.7982]
[1725637019315,7.7956,128.28,128.24,7.7976]
[1725637019597,7.7948,128.29,128.25,7.7972]
[1725637019986,2.82753971,128.31,128.24,19.4945]
[1725637019987,7.7954,128.28,128.24,19.4945]
[1725637020203,7.7977,128.25,128.22,15.2308]
[1725637020376,7.7983,128.24,128.22,15.2308]
[1725637020581,19.4921,128.26,128.19,1.55910033]
[1725637020783,19.4921,128.26,128.18,69.59955337]
[1725637021302,7.7988,128.23,128.18,78.96011157]
[1725637021499,7.7998,128.21,128.18,6.1852]
[1725637021705,19.4909,128.27,128.18,6.1852]
[1725637021999,19.4909,128.27,128.19,7.8007]
[1725637022201,45.0,128.26,128.19,7.8007]
[1725637022499,7.799,128.23,128.19,19.5019]
[1725637022892,22.35378005,128.27,128.19,19.5019]
[1725637023199,50.0,128.29,128.19,19.5019]
[1725637023398,39.4889,128.28,128.19,19.5019]
[1725637023582,7.7977,128.25,128.2,9.35964254]
[1725637023782,7.7977,128.25,128.2,9.35954254]
[1725637024096,7.7967,128.26,128.21,7.7993]
[1725637024302,2.83736417,128.3,128.22,88.91135337]
[1725637024504,7.7961,128.27,128.23,27.2939]
[1725637024702,19.4849,128.31,128.2,43.91135337]
[1725637024703,19.4873,128.29,128.2,43.91135337]
[1725637024884,7.7977,128.25,128.2,71.21075337]
[1725637025318,19.4908,128.27,128.18,51.65598217]
[1725637025503,7.7986,128.23,128.18,50.09655337]
[1725637025800,7.798,128.24,128.19,7.8004]
[1725637026183,19.4908,128.27,128.18,57.89785337]
[1725637026389,7.7986,128.23,128.18,57.89785337]
[1725637026581,7.798,128.24,128.19,7.8005]
[1725637026782,7.7972,128.26,128.21,7.7996]
[1725637026990,68.73919056,128.36,128.21,1.55950529]
[1725637026991,19.4865,128.3,128.21,1.55950529]
[1725637027198,7.7965,128.27,128.22,27.296]
[1725637027384,7.797,128.26,128.22,19.4972]
[1725637028001,7.7972,128.25,128.22,19.4972]
[1725637028203,7.7981,128.24,128.2,51.71145337]
[1725637028411,7.7973,128.25,128.21,7.7996]
[1725637028589,7.7968,128.26,128.22,1.55936977]
[1725637028782,2.88754474,128.3,128.22,45.47072314]
[1725637028985,69.15244678,128.36,128.24,43.91135337]
[1725637029312,69.15244678,128.36,128.26,7.7964]
[1725637029313,7.7938,128.31,128.26,7.7964]
[1725637030009,19.4805,128.34,128.25,27.3281991]
[1725637030228,7.7956,128.28,128.25,6.2769]
[1725637030583,7.7949,128.29,128.25,6.2769]
[1725637030793,7.7944,128.3,128.26,46.55882114]
[1725637031008,7.7944,128.3,128.26,54.35542114]
[1725637031183,7.7944,128.3,128.27,1.55867355]
[1725637031599,7.7919,128.34,128.29,7.7944]
[1725637031822,15.2253,128.45,128.32,70.00455337]
[1725637031988,19.4645,128.44,128.35,43.91135337]
[1725637032319,7.7869,128.42,128.36,46.55731453]
[1725637032484,7.7863,128.43,128.36,66.03291453]
[1725637032689,7.7869,128.42,128.37,43.91135337]
[1725637032889,7.7869,128.42,128.36,66.03291453]
[1725637032890,7.7869,128.42,128.36,64.4756]
[1725637033105,7.7869,128.42,128.36,72.2661]
[1725637033488,7.7895,128.38,128.33,79.97925337]
[1725637034009,50.0,128.42,128.32,6.6115]
[1725637034316,20.0,128.41,128.33,1.55803568]
[1725637034494,7.7894,128.38,128.33,46.55803568]
[1725637034694,20.0,128.41,128.32,77.79705337]
[1725637034891,7.791,128.36,128.32,6.6115]
[1725637035613,7.791,128.36,128.33,1.55804679]
[1725637035798,7.791,128.36,128.32,6.6115]
[1725637036118,7.7898,128.38,128.32,15.96221204]
[1725637036287,7.79,128.37,128.32,59.87356541]
[1725637036903,7.79,128.37,128.33,45.0]
[1725637037216,7.7905,128.36,128.32,50.52285337]
[1725637037505,7.7894,128.38,128.33,9.35030979]
[1725637038118,20.0,128.42,128.34,96.70305337]
[1725637038119,7.7886,128.4,128.34,96.70305337]
[1725637038419,7.7867,128.43,128.38,51.70055337]
[1725637038614,58.3809,128.47,128.38,43.91135337]
[1725637038907,19.4636,128.45,128.35,7.791]
[1725637039091,38.9321,128.43,128.32,6.6115]
[1725637039288,7.79,128.37,128.32,6.6115]
[1725637039493,7.7893,128.39,128.33,51.70365337]
[1725637039689,50.0,128.46,128.32,6.6115]
[1725637039690,7.7894,128.38,128.35,43.91135337]
[1725637039899,7.7894,128.38,128.33,51.70365337]
[1725637040125,7.7894,128.38,128.34,7.7916]
[1725637040618,7.7894,128.38,128.35,46.55759724]
[1725637040983,19.4634,128.45,128.37,7.7898]
[1725637041188,7.7877,128.41,128.38,1.55721594]
[1725637041386,7.7877,128.41,128.38,45.0]
[1725637041610,19.4666,128.43,128.35,63.38905337]
[1725637041802,7.7882,128.4,128.38,1.55733016]
[1725637042009,7.7882,128.4,128.36,52.7903]
[1725637042189,7.7875,128.42,128.36,46.55742402]
[1725637042395,61.30162333,128.47,128.37,35.6365]
[1725637042396,7.7863,128.43,128.37,35.6365]
[1725637042605,7.7863,128.43,128.38,98.25728562]
[1725637042801,7.7858,128.44,128.4,50.45335337]
[1725637043002,7.7858,128.44,128.4,52.01036041]
[1725637043319,7.7858,128.44,128.4,59.79836041]
[1725637043490,7.7858,128.44,128.4,58.24135337]
[1725637043691,22.38122333,128.47,128.4,59.79836533]
[1725637043692,7.7852,128.45,128.4,59.79836533]
[1725637043995,7.7852,128.45,128.41,45.0]
[1725637044313,22.27315385,128.5,128.42,45.46818231]
[1725637044512,7.7835,128.48,128.44,43.91135337]
[1725637045332,7.7839,128.47,128.44,43.91135337]
[1725637045510,7.7839,128.47,128.43,19.4652]
[1725637046010,2.8403038,128.52,128.46,43.91135337]
[1725637046188,15.9908169,128.57,128.48,43.91135337]
[1725637046390,7.7804,128.53,128.49,1.55588247]
[1725637046825,7.7807,128.53,128.49,45.0]
[1725637047114,7.7809,128.52,128.48,58.26495337]
[1725637047411,7.7809,128.52,128.48,50.48175337]
[1725637047907,7.7816,128.51,128.48,6.5704]
[1725637048210,19.4485,128.55,128.48,6.5704]
[1725637048415,7.7809,128.52,128.49,1.55606066]
[1725637048626,7.7809,128.52,128.48,6.5704]
[1725637048627,19.4485,128.55,128.48,14.3534]
[1725637048991,7.781,128.52,128.48,50.48175337]
[1725637049191,7.7815,128.51,128.48,6.5704]
[1725637049604,7.7833,128.48,128.45,16.2818]
[1725637049799,7.7827,128.49,128.45,17.8381955]
[1725637050001,7.7827,128.49,128.45,16.2818]
[1725637050323,7.7815,128.51,128.46,53.25177985]
[1725637050484,7.7815,128.51,128.46,53.25207985]
[1725637050917,7.7822,128.5,128.46,43.91135337]
[1725637051103,19.4527,128.52,128.45,16.2818]
[1725637051305,7.7841,128.47,128.44,6.5239]
[1725637051517,19.4527,128.52,128.45,1.55657686]
[1725637051706,7.7827,128.49,128.45,7.7845]
[1725637052018,7.7827,128.49,128.44,59.77722349]
[1725637052195,7.7822,128.5,128.45,7.7846]
[1725637052392,7.7822,128.5,128.46,1.55637762]
[1725637052710,7.7822,128.5,128.46,7.7844]
[1725637053294,7.7828,128.49,128.45,19.4622]
[1725637053811,19.4467,128.56,128.47,27.2427]
[1725637054010,45.0,128.55,128.48,1.55607783]
[1725637054221,19.4467,128.56,128.48,7.7832]
[1725637054425,7.7818,128.51,128.47,19.459]
[1725637054599,20.0,128.55,128.44,77.68395337]
[1725637054600,7.7834,128.48,128.44,77.68395337]
[1725637054920,19.4527,128.52,128.44,69.89845337]
[1725637055212,7.7837,128.48,128.44,25.9871]
[1725637055592,20.0,128.51,128.44,25.9871]
[1725637055593,7.784,128.47,128.44,6.5239]
[1725637056288,7.7848,128.46,128.44,6.5239]
[1725637056512,7.784,128.47,128.44,6.5239]
[1725637056718,7.784,128.47,128.44,8.0804148]
[1725637056887,7.784,128.47,128.44,6.5239]
[1725637057087,7.7846,128.46,128.44,6.5239]
[1725637057302,7.7851,128.45,128.44,6.5239]
[1725637057520,7.7862,128.44,128.39,6.0619]
[1725637057710,7.7862,128.44,128.39,49.97325337]
[1725637057909,7.7864,128.43,128.39,49.97325337]
[1725637058110,7.7859,128.44,128.4,9.3450133]
[1725637058420,7.7853,128.45,128.4,9.3450133]
[1725637058606,19.4588,128.48,128.39,59.31841611]
[1725637058809,19.4618,128.46,128.39,6.0619]
[1725637059115,7.7864,128.43,128.4,1.55718333]
[1725637059291,7.7864,128.43,128.39,49.97325337]
[1725637059496,7.7864,128.43,128.4,1.55712388]
[1725637059897,7.7858,128.44,128.4,9.34482388]
[1725637060346,58.3728,128.49,128.4,21.02701135]
[1725637060517,7.7851,128.45,128.41,9.34434278]
[1725637060916,7.7862,128.44,128.4,19.47]
[1725637061125,19.4631,128.45,128.39,6.0619]
[1725637061609,7.7867,128.43,128.39,15.40771425]
[1725637061998,39.4595,128.48,128.37,86.86355337]
[1725637061999,7.7875,128.41,128.37,86.86355337]
[1725637062198,19.4645,128.44,128.35,50.07335337]
[1725637062402,20.0,128.43,128.36,21.03344038]
[1725637062799,20.0,128.43,128.36,21.03338418]
[1725637063131,20.0,128.43,128.37,43.91135337]
[1725637063297,20.0,128.43,128.38,1.55731868]
[1725637063724,19.461,128.47,128.38,1.55731868]
[1725637063897,20.0,128.46,128.38,46.55731868]
[1725637064101,38.9153,128.49,128.41,43.91135337]
[1725637064305,41.82017502,128.49,128.42,1.55680403]
[1725637064503,2.90487502,128.49,128.43,1.55681278]
[1725637064711,7.7844,128.47,128.43,9.34291278]
[1725637064910,7.7833,128.48,128.44,7.7856]
[1725637065111,7.7843,128.47,128.43,59.81875827]
[1725637065315,7.7843,128.47,128.43,58.26225337]
[1725637065633,7.7843,128.47,128.43,14.3509]
[1725637065836,2.91345494,128.51,128.44,19.4639]
[1725637066120,7.7828,128.49,128.45,9.34099165]
[1725637066417,7.7831,128.49,128.45,7.7851]
[1725637066619,7.7834,128.48,128.44,71.16085337]
[1725637066824,58.3417,128.56,128.46,63.37185337]
[1725637067024,58.3417,128.56,128.47,1.55601342]
[1725637067324,7.781,128.52,128.47,54.33971342]
[1725637067533,7.781,128.52,128.48,7.7831]
[1725637068802,7.7819,128.51,128.47,46.55601342]
[1725637069222,7.7819,128.51,128.46,63.37185337]
[1725637069223,19.4528,128.52,128.46,1.55608968]
[1725637069431,19.4528,128.52,128.43,6.565]
[1725637069432,20.0,128.51,128.43,6.565]
[1725637069631,70.0,128.51,128.41,15.695]
[1725637069937,7.7858,128.44,128.39,33.621]
[1725637070111,7.7864,128.43,128.39,33.621]
[1725637070314,7.787,128.42,128.39,6.3617]
[1725637070499,7.7865,128.43,128.39,14.1504]
[1725637070909,35.4894,128.49,128.4,45.46837392]
[1725637071119,7.7851,128.45,128.41,7.7869]
[1725637071301,19.4576,128.49,128.42,1.55685752]
[1725637071628,7.7843,128.47,128.43,7.7862]
[1725637071928,27.7837,128.48,128.43,9.34280519]
[1725637072235,19.453,128.52,128.44,7.7856]
[1725637072236,7.7828,128.49,128.44,7.7856]
[1725637072523,7.7823,128.5,128.45,9.34110412]
[1725637073119,19.4559,128.5,128.44,1.5563364]
[1725637073300,7.7847,128.46,128.42,1.55679296]
[1725637073495,19.4559,128.5,128.43,9.34242151]
[1725637073496,7.7838,128.48,128.43,9.34242151]
[1725637073698,7.7843,128.47,128.43,9.34226024]
[1725637074218,7.7828,128.49,128.45,7.7847]
[1725637074424,20.0,128.48,128.45,9.34111115]
[1725637074609,7.7822,128.5,128.46,7.7843]
[1725637074920,7.7807,128.53,128.49,7.7826]
[1725637075121,19.4473,128.56,128.48,6.0081]
[1725637075122,22.29719902,128.56,128.48,6.0081]
[1725637075312,22.29719902,128.56,128.49,46.55588181]
[1725637075702,22.29719902,128.56,128.49,45.0]
[1725637075912,22.29719902,128.56,128.48,6.0081]
[1725637076821,7.7815,128.51,128.48,6.0081]
[1725637077403,7.7813,128.52,128.48,13.7913]
[1725637077600,19.4496,128.54,128.48,6.0081]
[1725637077935,7.7812,128.52,128.49,45.0]
[1725637078107,7.7815,128.51,128.48,6.0081]
[1725637079347,7.7812,128.52,128.48,13.7914]
[1725637079524,7.7819,128.51,128.49,1.55596607]
[1725637079716,7.7819,128.51,128.48,6.0081]
[1725637079918,7.7811,128.52,128.49,1.55617801]
[1725637080117,7.7811,128.52,128.48,15.34731794]
[1725637080316,19.4496,128.54,128.48,6.0081]
[1725637080522,7.7817,128.51,128.48,6.0081]
[1725637080714,27.7806,128.53,128.49,9.33875153]
[1725637080912,20.0,128.53,128.49,90.4675049]
[1725637081131,22.84989902,128.56,128.49,88.91135337]
[1725637081319,20.0,128.56,128.49,46.55591926]
[1725637081552,19.4478,128.55,128.48,25.4663]
[1725637081828,20.0,128.56,128.46,15.1461]
[1725637081829,7.7827,128.49,128.46,22.9305]
[1725637082035,7.7827,128.49,128.46,15.1461]
[1725637082206,22.79430632,128.56,128.44,6.0782]
[1725637082409,7.7851,128.45,128.44,6.0782]
[1725637082716,7.7847,128.46,128.44,6.0782]
[1725637082937,19.4583,128.48,128.4,6.1377]
[1725637083109,20.0,128.47,128.4,6.1377]
[1725637083510,7.7867,128.43,128.4,6.1377]
[1725637084034,19.4617,128.46,128.37,60.07005337]
[1725637084334,19.4617,128.46,128.36,6.1377]
[1725637084335,45.0,128.45,128.36,6.1377]
[1725637084515,7.7889,128.39,128.36,6.1377]
[1725637084720,7.7882,128.4,128.36,6.1377]
[1725637084920,7.7869,128.42,128.38,7.7892]
[1725637085110,20.0,128.45,128.39,1.55720297]
[1725637085435,19.4618,128.46,128.38,7.7892]
[1725637085739,20.0,128.47,128.36,6.1377]
[1725637085740,19.4649,128.44,128.36,6.1377]
[1725637086034,7.7883,128.4,128.36,15.48566693]
[1725637086222,7.7879,128.41,128.36,15.48536693]
[1725637087035,7.7876,128.41,128.36,15.48566693]
[1725637087238,20.0,128.43,128.36,6.1377]
[1725637087443,20.0,128.43,128.33,60.07005337]
[1725637087626,45.0,128.42,128.33,6.6524]
[1725637087824,7.7922,128.34,128.29,49.3304]
[1725637088133,45.0,128.42,128.29,49.3304]
[1725637088134,7.7901,128.37,128.32,7.7928]
[1725637088341,7.7901,128.37,128.33,19.4806]
[1725637088713,7.7906,128.36,128.33,19.4806]
[1725637089538,7.7901,128.37,128.33,27.2728]
[1725637089943,47.82160756,128.42,128.3,1.55789813]
[1725637090229,7.7907,128.36,128.32,7.7929]
[1725637091012,19.4726,128.39,128.29,29.8442]
[1725637091213,20.0,128.35,128.3,9.35229553]
[1725637091428,20.0,128.35,128.3,7.7939]
[1725637091635,7.7918,128.34,128.3,7.7939]
[1725637092022,7.7925,128.33,128.29,33.9333]
[1725637092637,20.0,128.32,128.26,19.4911]
[1725637092847,7.7931,128.32,128.27,1.55866563]
[1725637093135,7.7931,128.32,128.28,7.7953]
[1725637094126,27.7913,128.35,128.28,7.7953]
[1725637095044,27.7913,128.35,128.29,7.7947]
[1725637095237,27.7913,128.35,128.3,7.7941]
[1725637095452,20.0,128.35,128.28,19.4879]
[1725637095619,20.0,128.35,128.24,38.9891]
[1725637095818,45.0,128.34,128.28,7.7952]
[1725637096014,20.0,128.33,128.24,40.54797964]
[1725637096232,20.0,128.33,128.29,7.7943]
[1725637096421,20.0,128.33,128.28,1.55866722]
[1725637096624,22.81183897,128.35,128.29,19.4865]
[1725637096844,20.0,128.35,128.29,19.4865]
[1725637097049,45.0,128.34,128.29,27.2813]
[1725637097219,20.0,128.33,128.28,7.7953]
[1725637097420,20.0,128.33,128.23,19.4951]
[1725637097421,70.0,128.33,128.23,19.4951]
[1725637097642,7.796,128.27,128.23,27.2935]
[1725637097957,50.0,128.31,128.19,50.02255337]
[1725637097958,20.0,128.26,128.2,19.4997]
[1725637098537,7.7983,128.24,128.2,19.4997]
[1725637098847,27.7985,128.23,128.19,7.8004]
[1725637099034,7.7985,128.23,128.19,7.8004]
[1725637099345,72.7993,128.22,128.18,7.8013]
[1725637099754,20.0,128.22,128.19,7.8006]
[1725637099929,7.7979,128.24,128.19,7.8006]
[1725637100121,27.7986,128.23,128.19,7.8006]
[1725637100377,20.0,128.23,128.2,7.8]
[1725637100725,7.7973,128.25,128.2,7.8]
[1725637100928,20.0,128.24,128.2,7.8]
[1725637101245,20.0,128.24,128.16,43.91135337]
[1725637101246,20.0,128.24,128.21,21.05863258]
[1725637101547,20.0,128.24,128.21,19.4988]
[1725637101758,20.0,128.26,128.21,19.4988]
[1725637102162,7.7974,128.25,128.16,43.91135337]
[1725637102340,7.7974,128.25,128.17,46.55974571]
[1725637102341,20.0,128.24,128.17,46.55974571]
[1725637102656,20.0,128.24,128.21,7.7991]
[1725637102868,20.0,128.24,128.22,19.4972]
[1725637103161,27.7966,128.26,128.22,27.296]
[1725637103346,27.7966,128.26,128.16,43.91135337]
[1725637103347,7.7983,128.24,128.16,43.91135337]
[1725637103536,67.82245152,128.27,128.19,19.5016]
[1725637103537,20.0,128.23,128.19,19.5016]
[1725637103731,20.0,128.23,128.2,7.7997]
[1725637104054,67.82245152,128.27,128.21,7.7994]
[1725637104055,20.0,128.24,128.21,7.7994]
[1725637104242,20.0,128.25,128.21,19.4987]
[1725637104443,20.0,128.26,128.23,7.7979]
[1725637104757,20.0,128.26,128.18,19.5027]
[1725637104958,7.7985,128.23,128.18,27.304]
[1725637105156,7.7985,128.23,128.19,7.8008]
[1725637105739,7.7981,128.24,128.19,7.8008]
[1725637105937,20.0,128.23,128.19,7.8008]
[1725637106139,20.0,128.23,128.21,7.7991]
[1725637106338,20.0,128.23,128.2,27.3002]
[1725637106557,67.82245152,128.27,128.2,27.3002]
[1725637106558,27.7979,128.24,128.2,27.3002]
[1725637106947,20.0,128.24,128.21,7.7996]
[1725637107652,7.7967,128.26,128.22,7.799]
[1725637108355,25.61865152,128.27,128.23,7.7984]
[1725637108534,17.82245152,128.27,128.25,7.7972]
[1725637108740,17.82245152,128.27,128.23,7.7982]
[1725637108741,25.61855152,128.27,128.23,7.7982]
[1725637109164,20.0,128.26,128.23,7.7982]
[1725637109855,25.61855152,128.27,128.2,38.9993]
[1725637109856,17.82245152,128.27,128.24,7.7978]
[1725637110059,6.0,128.29,128.24,7.7978]
[1725637110060,7.7953,128.29,128.24,7.7978]
[1725637110651,7.7954,128.28,128.24,7.7978]
[1725637111067,20.0,128.27,128.25,19.4929]
[1725637111254,7.7975,128.25,128.21,7.7995]
[1725637111445,7.7968,128.26,128.21,7.7995]
[1725637111652,20.0,128.25,128.21,27.2986]
[1725637112274,20.0,128.25,128.22,7.7988]
[1725637112451,20.0,128.26,128.22,7.7988]
[1725637112852,7.7972,128.25,128.21,27.2986]
[1725637113175,27.7967,128.26,128.21,19.4991]
[1725637113372,27.7967,128.26,128.21,27.2984]
[1725637113679,7.7972,128.25,128.21,27.2984]
[1725637113973,27.7968,128.26,128.21,27.2984]
[1725637114761,7.7973,128.25,128.21,27.2984]
[1725637116048,30.66939136,128.26,128.22,7.799]
[1725637116243,22.87259136,128.26,128.21,19.4991]
[1725637116474,2.87259136,128.26,128.21,1.55964855]
[1725637116771,7.7946,128.3,128.26,7.7963]
[1725637116979,7.7944,128.3,128.26,7.7965]
[1725637118258,7.7924,128.33,128.29,7.7946]
[1725637118577,7.7924,128.33,128.27,19.4896]
[1725637118956,2.83705224,128.33,128.27,19.4896]
[1725637119149,84.7179,128.35,128.27,19.4896]
[1725637119976,50.0,128.32,128.24,19.494]
[1725637120184,65.0,128.31,128.24,19.494]
[1725637120469,7.7952,128.29,128.24,27.2913]
[1725637120854,7.7952,128.29,128.25,7.7972]
[1725637121054,7.7954,128.28,128.24,27.2918]
[1725637121377,7.795,128.29,128.24,27.2918]
[1725637121579,18.04239843,128.35,128.26,43.91135337]
[1725637121770,18.04239843,128.35,128.27,7.7959]
[1725637122149,7.7943,128.3,128.25,19.4919]
[1725637122372,50.0,128.32,128.22,6.2754]
[1725637122680,7.7958,128.28,128.24,7.7978]
[1725637122852,20.0,128.27,128.24,7.7978]
[1725637124780,27.7961,128.27,128.23,7.7982]
[1725637124949,20.0,128.27,128.24,7.7974]
[1725637125150,7.7973,128.25,128.21,7.7995]
[1725637125361,7.7979,128.24,128.2,7.8]
[1725637125573,19.4873,128.29,128.21,7.7992]
[1725637125874,7.7962,128.27,128.22,1.55967942]
[1725637126051,7.7962,128.27,128.21,19.4987]
[1725637126052,20.0,128.26,128.21,19.4987]
[1725637126449,20.0,128.26,128.22,1.55942157]
[1725637126951,20.0,128.26,128.23,7.798]
[1725637127152,20.0,128.31,128.23,7.798]
[1725637127360,20.0,128.31,128.22,1.55942157]
[1725637127361,7.797,128.26,128.22,7.7989]
[1725637127570,7.7973,128.25,128.21,27.2982]
[1725637127769,7.7973,128.25,128.21,19.4987]
[1725637127972,7.8002,128.21,128.16,7.8022]